bitfinex-derivatives/quotes_SOLF0:USTF0_20240930
["timestamp","ask_amount","ask_price","bid_price","bid_amount"]
[1727695981655,3.8646,155.29,155.21,0.12502]
[1727695981846,3.2199,155.28,155.25,3.2203]
[1727695982853,3.8646,155.29,155.21,0.12502]
[1727695983152,3.8646,155.29,155.24,3.2205]
[1727695983551,3.2203,155.26,155.23,3.2207]
[1727695985062,3.2203,155.26,155.22,3.221]
[1727695987261,3.2203,155.26,155.21,0.12502]
[1727695987262,3.8646,155.29,155.21,0.12502]
[1727695987853,3.2208,155.24,155.21,0.12502]
[1727695988053,3.8646,155.29,155.21,0.12502]
[1727695989157,3.8646,155.29,155.22,3.221]
[1727695989862,3.2204,155.26,155.22,3.221]
[1727695990255,3.2205,155.25,155.21,3.34612]
[1727695990456,3.8646,155.29,155.21,3.34612]
[1727695990861,3.2206,155.25,155.21,3.34612]
[1727695991557,3.2206,155.25,155.21,0.12502]
[1727695991764,3.8646,155.29,155.21,0.12502]
[1727695991963,3.2203,155.26,155.21,0.12502]
[1727695992259,3.2203,155.26,155.22,3.2209]
[1727695992862,3.2204,155.25,155.22,3.2209]
[1727695993065,2.6189,155.29,155.21,0.12502]
[1727695993359,21.9489,155.29,155.21,0.12502]
[1727695993555,3.221,155.22,155.21,0.12502]
[1727695997157,3.24429694,155.25,155.21,0.12502]
[1727695997361,3.2207,155.24,155.21,0.12502]
[1727695997559,3.15296557,155.26,155.21,3.34612]
[1727695997865,2.6189,155.29,155.21,3.34612]
[1727695998862,2.6189,155.29,155.21,0.12502]
[1727695999066,2.6189,155.29,155.22,3.221]
[1727696001262,3.2207,155.24,155.22,3.221]
[1727696001862,3.2203,155.26,155.24,3.2205]
[1727696002080,2.6189,155.29,155.21,0.12502]
[1727696002366,3.2201,155.27,155.25,3.2204]
[1727696002572,3.2201,155.27,155.21,0.12502]
[1727696002863,3.2201,155.27,155.22,3.2209]
[1727696003070,3.2201,155.27,155.21,0.12502]
[1727696003271,3.2201,155.27,155.21,1.40992]
[1727696003670,3.2202,155.26,155.22,3.2209]
[1727696005177,3.2202,155.26,155.23,3.2208]
[1727696006370,2.6189,155.29,155.23,3.2208]
[1727696006671,0.25477847,155.3,155.21,1.40992]
[1727696006882,0.25477847,155.3,155.22,7.29885681]
[1727696007076,0.25477847,155.3,155.23,11.67730716]
[1727696007273,0.25477847,155.3,155.22,7.29885681]
[1727696007474,0.25477847,155.3,155.23,18.9743881]
[1727696007677,0.25477847,155.3,155.24,7.29885681]
[1727696007875,0.25477847,155.3,155.25,8.66085681]
[1727696008075,0.25477847,155.3,155.25,1.362]
[1727696010078,0.25477847,155.3,155.27,3.2199]
[1727696010278,0.25477847,155.3,155.25,1.362]
[1727696010682,3.47427847,155.3,155.26,3.2201]
[1727696010988,0.25477847,155.3,155.23,7.2931543]
[1727696011177,0.25477847,155.3,155.21,2.66192]
[1727696011376,0.25477847,155.3,155.25,3.2204]
[1727696011377,3.2197,155.29,155.25,3.2204]
[1727696012484,0.25477847,155.3,155.22,7.29263435]
[1727696012686,3.2201,155.27,155.23,3.2207]
[1727696015081,3.2202,155.26,155.22,3.2209]
[1727696015487,0.25477847,155.3,155.21,2.66192]
[1727696015690,0.25477847,155.3,155.21,1.40992]
[1727696016394,3.2202,155.27,155.22,3.2209]
[1727696017208,3.2202,155.27,155.23,3.2208]
[1727696017495,0.25477847,155.3,155.21,1.40992]
[1727696017700,0.25477847,155.3,155.24,3.2204]
[1727696018093,3.2199,155.28,155.24,3.2204]
[1727696022798,0.25477847,155.3,155.24,3.2204]
[1727696022999,3.22,155.27,155.24,3.2204]
[1727696023402,3.2198,155.28,155.24,3.2204]
[1727696025895,3.22,155.27,155.24,3.2204]
[1727696026303,0.25477847,155.3,155.21,1.40992]
[1727696026601,0.25477847,155.3,155.23,3.2207]
[1727696027099,0.25477847,155.3,155.21,0.12502]
[1727696027804,3.2203,155.26,155.22,3.221]
[1727696028102,0.25477847,155.3,155.22,3.221]
[1727696028299,0.25477847,155.3,155.21,0.12502]
[1727696029104,3.2197,155.29,155.26,3.2201]
[1727696029309,0.25477847,155.3,155.22,1.3069]
[1727696029501,0.25477847,155.3,155.23,7.29347619]
[1727696029707,0.25477847,155.3,155.22,1.3069]
[1727696029906,0.25477847,155.3,155.23,7.29337655]
[1727696030107,0.25477847,155.3,155.27,3.2199]
[1727696031112,3.47417847,155.3,155.27,3.2199]
[1727696031602,3.47417847,155.3,155.26,3.2201]
[1727696036808,3.2196,155.29,155.25,3.2202]
[1727696039302,3.2196,155.29,155.24,3.2206]
[1727696039504,3.2196,155.29,155.22,1.3069]
[1727696039705,3.2196,155.29,155.23,7.29339034]
[1727696039904,3.2196,155.29,155.25,3.2203]
[1727696040105,0.25477847,155.3,155.22,1.3069]
[1727696040306,3.2201,155.27,155.23,7.29356739]
[1727696040509,3.2201,155.27,155.23,3.2207]
[1727696040711,3.2199,155.28,155.21,0.12502]
[1727696040912,2.5465,155.29,155.21,0.12502]
[1727696041214,3.2205,155.25,155.21,3.34612]
[1727696042012,3.2201,155.27,155.22,3.2208]
[1727696042214,3.2201,155.27,155.21,0.12502]
[1727696043718,3.2201,155.27,155.23,3.2207]
[1727696044815,2.5465,155.29,155.21,0.12502]
[1727696045006,0.25477847,155.3,155.21,0.12502]
[1727696045212,0.25477847,155.3,155.22,7.29835245]
[1727696045411,3.47427847,155.3,155.26,3.2202]
[1727696049315,3.2197,155.29,155.25,3.2203]
[1727696049616,3.2197,155.29,155.22,2.6202]
[1727696049923,3.47427847,155.3,155.26,3.2201]
[1727696051017,3.47427847,155.3,155.27,3.2199]
[1727696051018,0.25477847,155.3,155.27,3.2199]
[1727696051524,0.25477847,155.3,155.22,2.6202]
[1727696051724,0.25477847,155.3,155.27,3.2199]
[1727696052020,0.25477847,155.3,155.24,11.68456143]
[1727696052219,0.25477847,155.3,155.25,7.30272003]
[1727696052418,0.25477847,155.3,155.23,1.3013]
[1727696052620,0.25477847,155.3,155.24,18.98648919]
[1727696052923,0.25477847,155.3,155.27,3.2199]
[1727696053625,0.25477847,155.3,155.23,1.3013]
[1727696054125,0.25477847,155.3,155.24,7.30239347]
[1727696054317,3.2197,155.29,155.25,10.52269347]
[1727696054519,3.2197,155.29,155.25,3.2203]
[1727696054718,0.25477847,155.3,155.23,1.3013]
[1727696055020,0.25477847,155.3,155.28,3.2197]
[1727696055519,0.25477847,155.3,155.27,3.2199]
[1727696056319,0.25477847,155.3,155.28,3.2197]
[1727696056628,0.25477847,155.3,155.23,1.3013]
[1727696056923,0.25477847,155.3,155.29,3.2196]
[1727696059218,0.14564188,155.32,155.31,3.2192]
[1727696060934,9.86302049,155.36,155.28,3.15643717]
[1727696061244,9.86302049,155.36,155.35,3.2183]
[1727696061833,9.86302049,155.36,155.35,9.47266725]
[1727696062122,6.46192049,155.36,155.35,3.2183]
[1727696062318,2.09956576,155.38,155.37,3.2179]
[1727696068624,2.67141506,155.43,155.37,14.86391266]
[1727696068827,3.2167,155.43,155.38,36.70146807]
[1727696069024,3.2167,155.43,155.39,40.76272598]
[1727696069223,3.2167,155.43,155.4,40.76272598]
[1727696069424,9.23487548,155.42,155.38,3.2175]
[1727696069625,0.12502,155.39,155.32,69.54]
[1727696069824,9.23487548,155.38,155.32,69.54]
[1727696070021,9.23487548,155.37,155.32,69.54]
[1727696070230,9.23487548,155.37,155.32,72.82473965]
[1727696070432,9.23487548,155.37,155.36,3.2181]
[1727696070635,0.12502,155.39,155.35,60.3998328]
[1727696070930,10.8887753,155.38,155.35,60.3998328]
[1727696071137,10.8887753,155.37,155.36,3.2181]
[1727696073331,10.8887753,155.37,155.35,60.3998328]
[1727696073634,10.8887753,155.36,155.35,60.3998328]
[1727696075230,10.8887753,155.36,155.35,63.6181328]
[1727696076625,0.12502,155.39,155.38,3.2177]
[1727696096347,0.12502,155.39,155.38,9.86598688]
[1727696096546,1e-08,155.39,155.38,20.50135492]
[1727696099243,1e-08,155.39,155.38,3.2177]
[1727696099448,1e-08,155.39,155.38,20.49661703]
[1727696101650,1e-08,155.39,155.38,89.99661703]
[1727696102557,1e-08,155.39,155.38,89.98478396]
[1727696105652,1e-08,155.39,155.38,89.97788003]
[1727696106451,1e-08,155.39,155.38,20.47788003]
[1727696107260,1e-08,155.39,155.38,9.85623078]
[1727696107559,1e-08,155.39,155.38,20.47840097]
[1727696107757,1e-08,155.39,155.38,9.85623078]
[1727696108656,1e-08,155.39,155.38,3.2177]
[1727696109759,1e-08,155.39,155.38,9.85806152]
[1727696115158,1e-08,155.39,155.38,3.2177]
[1727696115360,1e-08,155.39,155.38,9.87002174]
[1727696116162,1e-08,155.39,155.38,20.5169904]
[1727696119470,1.2778,155.44,155.41,3.217]
[1727696119672,1.2778,155.44,155.42,17.2992904]
[1727696119867,1.2778,155.44,155.43,6.65232174]
[1727696120371,1.2778,155.44,155.43,9.86902174]
[1727696120573,1.2778,155.44,155.43,20.52723685]
[1727696120774,1.2778,155.44,155.43,9.86902174]
[1727696120978,1.2778,155.44,155.43,4.60392174]
[1727696121170,1.2778,155.44,155.37,7.97100048]
[1727696121470,1.2778,155.44,155.38,10.66270063]
[1727696121769,4.4944,155.44,155.39,13.88010063]
[1727696121969,4.4944,155.44,155.39,3.2174]
[1727696123167,3.2168,155.43,155.38,3.2177]
[1727696123482,1.2778,155.44,155.35,137.87699461]
[1727696123687,1.2778,155.44,155.36,10.54135116]
[1727696123869,1.2778,155.44,155.37,10.54135116]
[1727696124064,1.2778,155.44,155.35,69.5]
[1727696124278,1.2778,155.44,155.37,3.2179]
[1727696124501,1.2778,155.44,155.35,69.5]
[1727696124775,1.2778,155.44,155.37,3.2179]
[1727696124776,3.2172,155.41,155.37,3.2179]
[1727696124973,1.2778,155.44,155.33,8.11511443]
[1727696125278,1.2778,155.44,155.34,10.54779717]
[1727696125472,3.2172,155.41,155.37,3.2179]
[1727696126481,1.2393,155.4,155.37,3.2179]
[1727696127380,4.4566,155.4,155.37,3.2179]
[1727696128073,4.4566,155.4,155.34,16.00365952]
[1727696128285,1.2393,155.4,155.35,10.56716622]
[1727696128582,3.2176,155.39,155.36,10.56716622]
[1727696128775,3.2176,155.39,155.35,3.2182]
[1727696128975,1.267,155.38,155.35,3.2182]
[1727696129275,1.267,155.38,155.36,10.56718856]
[1727696129469,1.267,155.38,155.34,8.00182976]
[1727696129777,4.4848,155.38,155.35,10.57299114]
[1727696129980,4.4848,155.38,155.36,10.57299114]
[1727696130171,1.267,155.38,155.34,11.22032976]
[1727696130376,1.267,155.38,155.35,10.5729852]
[1727696130578,1.267,155.38,155.36,10.5729852]
[1727696130579,3.2179,155.37,155.36,10.5729852]
[1727696130878,3.2179,155.37,155.34,3.2185]
[1727696131070,3.2179,155.37,155.35,10.57302977]
[1727696131276,3.2179,155.37,155.34,3.2185]
[1727696131470,4.4848,155.38,155.35,10.57221409]
[1727696131678,4.4848,155.38,155.34,3.2185]
[1727696131883,1.267,155.38,155.35,10.57220296]
[1727696132070,3.218,155.37,155.34,3.2185]
[1727696132279,3.218,155.37,155.35,10.5709771]
[1727696132585,3.218,155.37,155.34,3.2185]
[1727696132792,3.218,155.37,155.35,10.57097197]
[1727696133085,3.218,155.37,155.34,3.2185]
[1727696133284,3.2181,155.36,155.35,17.17588315]
[1727696133480,3.2181,155.36,155.35,6.6061089]
[1727696134291,1.267,155.38,155.35,17.174244]
[1727696134592,1.267,155.38,155.36,17.17340254]
[1727696134787,1.267,155.38,155.37,6.6061089]
[1727696136586,1.267,155.38,155.37,9.8240089]
[1727696136781,1.267,155.38,155.37,20.39019934]
[1727696137386,1.267,155.38,155.37,9.8240089]
[1727696137588,1.267,155.38,155.37,20.1899622]
[1727696140697,1.267,155.38,155.37,3.2179]
[1727696140898,1.267,155.38,155.37,20.18944825]
[1727696141890,1.267,155.38,155.37,16.97154825]
[1727696143892,1.267,155.38,155.37,10.44466009]
[1727696144092,1.267,155.38,155.37,16.97257264]
[1727696144692,1.267,155.38,155.37,6.52791255]
[1727696144899,1.267,155.38,155.37,4.47951255]
[1727696145299,4.4847,155.38,155.37,4.47951255]
[1727696145494,4.4847,155.38,155.33,0.12502]
[1727696145694,4.4847,155.38,155.34,10.40172186]
[1727696145998,4.4847,155.38,155.35,10.40159502]
[1727696145999,1.267,155.38,155.35,10.40159502]
[1727696146188,1.267,155.38,155.33,0.12502]
[1727696146393,1.267,155.38,155.35,3.2181]
[1727696146699,4.4847,155.38,155.35,3.2181]
[1727696148395,4.4847,155.38,155.33,0.12502]
[1727696148595,4.4847,155.38,155.34,13.61820108]
[1727696148790,4.4847,155.38,155.34,3.2184]
[1727696148996,4.4847,155.38,155.33,0.12502]
[1727696149296,4.4847,155.38,155.35,3.2183]
[1727696149492,1.267,155.38,155.35,3.2183]
[1727696150099,3.2179,155.37,155.33,3.34362]
[1727696150291,1.267,155.38,155.34,10.3982377]
[1727696150598,1.267,155.38,155.33,0.12502]
[1727696150895,3.2182,155.36,155.33,0.12502]
[1727696152694,1.267,155.38,155.33,0.12502]
[1727696153000,1.267,155.38,155.34,10.39638126]
[1727696153188,1.267,155.38,155.33,0.12502]
[1727696153593,1.267,155.38,155.34,10.39531995]
[1727696154099,1.267,155.38,155.33,0.12502]
[1727696154100,1.267,155.38,155.35,10.39531995]
[1727696154401,1.267,155.38,155.33,0.12502]
[1727696154603,1.267,155.38,155.34,10.39473286]
[1727696154803,1.267,155.38,155.35,10.39473286]
[1727696154999,4.4847,155.38,155.34,3.2184]
[1727696155200,4.4847,155.38,155.35,10.39482443]
[1727696155408,4.4847,155.38,155.34,3.2184]
[1727696155602,4.4847,155.38,155.35,10.39448204]
[1727696155810,4.4847,155.38,155.34,3.2184]
[1727696156103,4.4847,155.38,155.35,10.39448574]
[1727696156408,4.4847,155.38,155.34,3.2184]
[1727696156703,1.267,155.38,155.35,13.61227879]
[1727696156998,1.267,155.38,155.36,6.49613075]
[1727696157204,1.267,155.38,155.37,6.49613075]
[1727696157404,1.267,155.38,155.37,6.49596579]
[1727696158406,4.4847,155.38,155.37,6.49596579]
[1727696159998,4.4847,155.38,155.37,6.49575751]
[1727696162795,1.267,155.38,155.33,0.12502]
[1727696163009,1.267,155.38,155.34,6.49628103]
[1727696163195,3.2184,155.35,155.33,0.12502]
[1727696163709,1.267,155.38,155.33,0.12502]
[1727696163898,1.267,155.38,155.33,3.34372]
[1727696164099,1.267,155.38,155.33,0.12502]
[1727696164296,3.23449874,155.37,155.33,0.12502]
[1727696164509,3.2185,155.34,155.33,0.12502]
[1727696166411,3.2193,155.31,155.27,3.34492]
[1727696166711,3.2193,155.31,155.28,16.88247107]
[1727696166906,3.2193,155.31,155.29,6.4932581]
[1727696167111,3.2193,155.31,155.3,6.4932581]
[1727696167609,3.2193,155.31,155.27,3.34492]
[1727696167801,3.2193,155.31,155.28,16.87945618]
[1727696168001,3.2193,155.31,155.29,6.49209853]
[1727696168196,3.2193,155.31,155.27,3.34492]
[1727696168401,3.2193,155.31,155.28,16.87670549]
[1727696168600,3.2193,155.31,155.29,6.49104057]
[1727696168801,3.2193,155.31,155.27,3.34492]
[1727696169001,3.2196,155.29,155.28,16.87646418]
[1727696169205,3.2196,155.29,155.28,6.49094776]
[1727696170107,3.2194,155.3,155.28,6.49094776]
[1727696170300,3.2194,155.3,155.29,6.49094776]
[1727696170708,3.22673043,155.32,155.27,0.12502]
[1727696171015,25.7557,155.38,155.27,0.12502]
[1727696171313,3.2195,155.3,155.27,0.12502]
[1727696171913,3.2195,155.3,155.28,6.48860515]
[1727696172116,3.2195,155.3,155.27,0.12502]
[1727696172307,3.2195,155.3,155.28,6.48792355]
[1727696172615,3.2195,155.3,155.27,0.12502]
[1727696174011,3.2196,155.29,155.27,0.12502]
[1727696176111,3.2192,155.31,155.27,0.12502]
[1727696176703,1.2609,155.37,155.28,6.41131263]
[1727696177006,4.5132834,155.37,155.29,6.41131263]
[1727696177213,1.2609,155.37,155.27,0.12502]
[1727696177413,3.2189,155.33,155.29,3.2195]
[1727696177606,3.2189,155.33,155.27,0.12502]
[1727696177914,3.17508374,155.35,155.28,6.41115938]
[1727696178107,1.2609,155.37,155.27,0.12502]
[1727696178312,3.2192,155.31,155.28,6.41119461]
[1727696178516,3.2192,155.31,155.27,3.34492]
[1727696178713,3.2192,155.31,155.28,6.41130477]
[1727696179010,3.2192,155.31,155.27,3.34492]
[1727696179211,3.2192,155.31,155.28,6.41141748]
[1727696179407,3.2192,155.31,155.27,3.34492]
[1727696179608,3.2192,155.31,155.28,6.41108632]
[1727696179808,3.2192,155.31,155.27,3.34492]
[1727696180012,3.2192,155.31,155.28,6.41108632]
[1727696180211,3.2192,155.31,155.27,3.34492]
[1727696180516,3.2192,155.31,155.28,6.41106306]
[1727696180710,3.2195,155.3,155.27,0.12502]
[1727696180917,3.2195,155.3,155.28,6.41106306]
[1727696181117,3.2195,155.3,155.27,0.12502]
[1727696181316,3.2195,155.3,155.28,6.41106509]
[1727696181616,3.2185,155.34,155.28,3.2198]
[1727696181822,3.29929647,155.35,155.29,6.41062383]
[1727696182116,3.2191,155.32,155.28,3.2198]
[1727696182323,3.2191,155.32,155.29,6.4110317]
[1727696182623,3.19496328,155.35,155.27,0.12502]
[1727696182810,1.2609,155.37,155.28,6.41119544]
[1727696183111,1.3327,155.34,155.27,0.12502]
[1727696183315,3.2198,155.28,155.27,0.12502]
[1727696185421,4.6146142,155.34,155.27,0.12502]
[1727696185422,3.2197,155.29,155.27,0.12502]
[1727696186022,4.6146142,155.34,155.27,0.12502]
[1727696186322,3.2198,155.28,155.27,0.12502]
[1727696188122,3.2198,155.28,155.27,6.53823007]
[1727696189319,3.2198,155.28,155.27,6.5399568]
[1727696189518,23.9346142,155.34,155.27,6.5399568]
[1727696189830,4.6146142,155.34,155.27,0.12502]
[1727696190024,4.6146142,155.34,155.28,6.41454985]
[1727696190223,4.6146142,155.34,155.27,0.12502]
[1727696190224,3.2193,155.31,155.29,6.41454985]
[1727696190523,3.2193,155.31,155.27,3.34492]
[1727696190727,4.6146142,155.34,155.28,16.68149023]
[1727696190922,4.6146142,155.34,155.29,6.41595778]
[1727696190923,3.2195,155.3,155.29,6.41595778]
[1727696192027,3.2195,155.3,155.27,0.12502]
[1727696192225,3.2195,155.3,155.29,6.41729185]
[1727696192517,3.2195,155.3,155.27,0.12502]
[1727696192711,3.2195,155.3,155.28,6.41867854]
[1727696192910,3.2195,155.3,155.29,6.41867854]
[1727696194717,3.2197,155.29,155.27,0.12502]
[1727696194929,4.6146142,155.34,155.28,6.4192284]
[1727696195220,4.6146142,155.34,155.27,0.12502]
[1727696195433,3.2198,155.28,155.27,0.12502]
[1727696195620,3.2198,155.28,155.27,6.54438974]
[1727696195923,3.2198,155.28,155.27,0.12502]
[1727696210127,22.5398,155.28,155.27,0.12502]
[1727696212640,3.221,155.22,155.21,0.12502]
[1727696213227,6.45616011,155.22,155.21,0.12502]
[1727696217028,6.45616011,155.22,155.21,1e-08]
[1727696217531,25.77616011,155.22,155.21,1e-08]
[1727696234953,6.45616011,155.22,155.21,1e-08]
[1727696242364,3.23516011,155.22,155.21,1e-08]
[1727696242668,1.3327,155.25,155.21,1e-08]
[1727696242853,79.42436547,155.27,155.21,1e-08]
[1727696243251,3.221,155.22,155.21,1e-08]
[1727696243467,3.26790433,155.25,155.21,1e-08]
[1727696243665,79.42436547,155.27,155.21,1e-08]
[1727696245259,3.221,155.22,155.21,1e-08]
[1727696245454,3.18861599,155.25,155.21,1e-08]
[1727696245661,79.42436547,155.27,155.21,1e-08]
[1727696246262,3.221,155.22,155.21,1e-08]
[1727696247766,3.29304454,155.25,155.21,1e-08]
[1727696247970,79.42436547,155.27,155.21,1e-08]
[1727696249272,3.221,155.22,155.21,1e-08]
[1727696263886,22.541,155.22,155.21,1e-08]
[1727696264600,3.221,155.22,155.21,1e-08]
[1727696301920,3.221,155.22,155.21,6.29311965]
[1727696305237,3.221,155.22,155.21,6.29416987]
[1727696305614,3.221,155.22,155.21,1e-08]
[1727696321732,22.541,155.22,155.21,1e-08]
[1727696328034,23.49993064,155.22,155.21,1e-08]
[1727696329034,22.541,155.22,155.21,1e-08]
[1727696329244,23.49998028,155.22,155.21,1e-08]
[1727696330532,22.541,155.22,155.21,1e-08]
[1727696334152,23.49990553,155.22,155.21,1e-08]
[1727696335135,42.82990553,155.22,155.21,1e-08]
[1727696337244,41.871,155.22,155.21,1e-08]
[1727696337430,42.8301463,155.22,155.21,1e-08]
[1727696341144,42.8301463,155.22,155.15,2.001e-05]
[1727696341145,22.5423,155.16,155.15,2.001e-05]
[1727696341341,102.86303038,155.16,155.15,2.001e-05]
[1727696341643,102.86329233,155.16,155.15,2.001e-05]
[1727696341839,86.81480103,155.16,155.15,2.001e-05]
[1727696342538,86.81487695,155.16,155.15,2.001e-05]
[1727696345743,86.81488219,155.16,155.15,2.001e-05]
[1727696347240,106.13488219,155.16,155.15,2.001e-05]
[1727696349843,105.17539278,155.16,155.15,2.001e-05]
[1727696350047,106.13487725,155.16,155.15,2.001e-05]
[1727696353643,107.43587725,155.16,155.15,2.001e-05]
[1727696354150,107.43619544,155.16,155.15,2.001e-05]
[1727696354549,126.76619544,155.16,155.15,2.001e-05]
[1727696358167,126.76628068,155.16,155.15,2.001e-05]
[1727696362167,107.43628068,155.16,155.15,2.001e-05]
[1727696362368,107.43627106,155.16,155.15,2.001e-05]
[1727696364767,106.47639278,155.16,155.15,2.001e-05]
[1727696364966,107.43627084,155.16,155.15,2.001e-05]
[1727696367468,196.48627084,155.16,155.15,2.001e-05]
[1727696370876,196.48629232,155.16,155.15,2.001e-05]
[1727696371571,196.48634989,155.16,155.15,2.001e-05]
[1727696373186,196.48638065,155.16,155.15,2.001e-05]
[1727696373870,175.81538065,155.16,155.15,2.001e-05]
[1727696374267,175.81523512,155.16,155.15,2.001e-05]
[1727696374870,174.85539278,155.16,155.15,2.001e-05]
[1727696375077,175.8152386,155.16,155.15,2.001e-05]
[1727696378588,195.1852386,155.16,155.15,2.001e-05]
[1727696379177,194.22539278,155.16,155.15,2.001e-05]
[1727696379485,195.18534345,155.16,155.15,2.001e-05]
[1727696382894,175.81534345,155.16,155.15,2.001e-05]
[1727696383491,175.81524161,155.16,155.15,2.001e-05]
[1727696384477,175.81523917,155.16,155.15,2.001e-05]
[1727696387591,175.81524462,155.16,155.15,2.001e-05]
[1727696391205,106.13524462,155.16,155.15,2.001e-05]
[1727696391796,105.17539278,155.16,155.15,2.001e-05]
[1727696392097,106.13523933,155.16,155.15,2.001e-05]
[1727696395999,105.17539278,155.16,155.15,2.001e-05]
[1727696396303,106.13523934,155.16,155.15,2.001e-05]
[1727696399906,86.81523934,155.16,155.15,2.001e-05]
[1727696400095,105.17539278,155.16,155.15,2.001e-05]
[1727696400291,86.81509668,155.16,155.15,2.001e-05]
[1727696402401,106.13509668,155.16,155.15,2.001e-05]
[1727696404209,106.13518178,155.16,155.15,2.001e-05]
[1727696405804,105.17539278,155.16,155.15,2.001e-05]
[1727696406002,106.13506902,155.16,155.15,2.001e-05]
[1727696408413,105.17539278,155.16,155.15,2.001e-05]
[1727696408613,106.1350664,155.16,155.15,2.001e-05]
[1727696412715,106.13515922,155.16,155.15,2.001e-05]
[1727696413103,106.13516221,155.16,155.15,2.001e-05]
[1727696416715,106.13525186,155.16,155.15,2.001e-05]
[1727696421119,106.13525303,155.16,155.15,2.001e-05]
[1727696421321,106.13525303,155.16,155.09,0.12502]
[1727696421322,102.91295303,155.16,155.09,0.12502]
[1727696421530,3.2235,155.1,155.09,0.12502]
[1727696421729,4.18341875,155.1,155.09,0.12502]
[1727696422020,4.18341875,155.1,155.09,1e-08]
[1727696422021,23.50341875,155.1,155.09,1e-08]
[1727696422224,4.18341875,155.1,155.09,1e-08]
[1727696424917,3.2235,155.1,155.09,1e-08]
[1727696425121,4.18342987,155.1,155.09,1e-08]
[1727696425331,4.18342979,155.1,155.09,1e-08]
[1727696427634,23.54342979,155.1,155.09,1e-08]
[1727696428733,4.18342979,155.1,155.09,1e-08]
[1727696429334,4.18347373,155.1,155.09,1e-08]
[1727696430130,23.54347373,155.1,155.09,1e-08]
[1727696431139,42.91347373,155.1,155.09,1e-08]
[1727696431531,3.2248,155.04,155.03,0.12502]
[1727696431826,4.18477373,155.04,155.03,0.12502]
[1727696432231,7.39986759,155.04,155.03,0.12502]
[1727696433543,7.40028919,155.04,155.03,0.12502]
[1727696436837,6.43989386,155.04,155.03,0.12502]
[1727696459053,26.76027983,155.04,155.03,1e-08]
[1727696463052,26.76053096,155.04,155.03,1e-08]
[1727696463646,7.40053096,155.04,155.03,1e-08]
[1727696466451,7.40031808,155.04,155.03,1e-08]
[1727696467051,6.43989386,155.04,155.03,1e-08]
[1727696467252,7.40031922,155.04,155.03,1e-08]
[1727696470258,26.76031922,155.04,155.03,1e-08]
[1727696471144,25.79989386,155.04,155.03,1e-08]
[1727696471358,26.76055479,155.04,155.03,1e-08]
[1727696477158,7.40055479,155.04,155.03,1e-08]
[1727696479561,25.79989386,155.04,155.03,1e-08]
[1727696479755,26.76036228,155.04,155.03,1e-08]
[1727696483770,26.76041279,155.04,155.03,1e-08]
[1727696483965,7.40041279,155.04,155.03,1e-08]
[1727696484969,6.43989386,155.04,155.03,1e-08]
[1727696485157,7.40034941,155.04,155.03,1e-08]
[1727696485670,26.76034941,155.04,155.03,1e-08]
[1727696486164,26.76039282,155.04,155.03,1e-08]
[1727696487972,26.76035967,155.04,155.03,1e-08]
[1727696488367,7.40035967,155.04,155.03,1e-08]
[1727696491975,6.43989386,155.04,155.03,1e-08]
[1727696492172,0.12501999,155.09,155.03,1e-08]
[1727696492377,3.2243,155.07,155.03,1e-08]
[1727696492578,3.19660491,155.06,155.03,1e-08]
[1727696492772,3.2248,155.04,155.03,1e-08]
[1727696492974,3.26534563,155.07,155.03,1e-08]
[1727696493168,0.12501999,155.09,155.03,1e-08]
[1727696493773,3.2248,155.04,155.03,1e-08]
[1727696494081,3.17433679,155.07,155.03,1e-08]
[1727696494378,0.12501999,155.09,155.03,1e-08]
[1727696495373,3.2248,155.04,155.03,1e-08]
[1727696496373,0.12501999,155.09,155.03,1e-08]
[1727696496569,0.12501999,155.09,155.03,3.22490001]
[1727696498077,3.2246,155.05,155.03,1e-08]
[1727696499385,0.12501999,155.09,155.03,1e-08]
[1727696500086,3.2243,155.07,155.04,3.2246]
[1727696501589,3.34881999,155.09,155.06,3.2243]
[1727696503282,3.224,155.08,155.06,3.2243]
[1727696503487,3.224,155.08,155.03,1e-08]
[1727696503682,3.224,155.08,155.05,3.2245]
[1727696505878,0.12501999,155.09,155.03,1e-08]